Cogmind - Beta 16 @@@ ROGUE MODE // 2025.11.02 @ 19:43:38 Player: Moodge Result: Destroyed by Y-54 Guardian with Flak Gun Performance ------------- Evolutions (3) 1500 Regions Visited (6) 1200 Robots Destroyed (17) 85 Value Destroyed (422) 422 Prototype IDs (1) 20 Alien Tech Used (0) 0 Bonus (300) 300 TOTAL SCORE: 3527 Bonus ------- Aligned with FarCom 300 Cogmind --------- Core Integrity 0/700 Matter 300/300 Energy 98/100 System Corruption 1% Temperature Cool (12) Movement Core (50) Location -7/Factory Parts ------- > --- POWER (2) -------- (None) > --- PROPULSION (4) --- (None) > --- UTILITY (5) ------ (None) > --- WEAPON (2) ------- (None) > --- INVENTORY (5) ---- Nuclear Core Terrain Scan Processor Peak State ------------ > --- POWER ------------ Micro Nuclear Core Micro Nuclear Core > --- PROPULSION ------- Flying Fortress v7 > --- UTILITY ---------- High-capacity Storage Unit Transmission Jammer Recalibrator > --- WEAPON ----------- Remote Datajack Scythe > --- INVENTORY -------- Cesium-ion Thruster Huge Storage Unit Improved Sensor Array Improved Signal Interpreter Improved Terrain Scan Processor Shield Generator Component Analysis Suite System Restoration Module [Rating: 58] Favorites ----------- Power Light Ion Engine Engine Light Ion Engine Power Core Micro Nuclear Core Propulsion Aluminum Leg Leg Aluminum Leg Hover Unit Improved Hover Unit Flight Unit Flight Unit Utility Transmission Jammer Device Transmission Jammer Storage Small Storage Unit Processor Improved Signal Interpreter Weapon Light Assault Rifle Energy Gun EM Pulse Gun Ballistic Gun Light Assault Rifle Special Weapon Remote Datajack Slashing Weapon Scythe Build | -11 -10 -10 -10 -9 -8 -7 ------- Run | Yrd Mat Min Exi Min Mat Fac Slots Evolved 6 | . . . . . 4 2 Power 1 | . . . . . 1 . Propulsion 2 | . . . . . 2 . Utility 3 | . . . . . 1 2 Weapon . | . . . . . . . Parts Attached 27 | 1 11 . 1 2 2 10 Power 7 | . 4 . . 1 . 2 Engine 5 | . 4 . . 1 . . Core 2 | . . . . . . 2 Reactor . | . . . . . . . Propulsion 6 | . 3 . . . 1 2 Treads . | . . . . . . . Leg 1 | . 1 . . . . . Wheel . | . . . . . . . Hover 1 | . . . . . . 1 Flight 4 | . 2 . . . 1 1 Utility 9 | . 2 . 1 1 1 4 Device 4 | . 1 . . 1 1 1 Storage 2 | . . . 1 . . 1 Processor 3 | . 1 . . . . 2 Hackware . | . . . . . . . Protection . | . . . . . . . Artifact . | . . . . . . . Weapon 5 | 1 2 . . . . 2 Energy Gun . | . . . . . . . Energy Cannon . | . . . . . . . Ballistic Gun 3 | 1 2 . . . . . Ballistic Cannon . | . . . . . . . Launcher . | . . . . . . . Special Weapon 1 | . . . . . . 1 Impact Weapon . | . . . . . . . Slashing Weapon 1 | . . . . . . 1 Piercing Weapon . | . . . . . . . Special Melee Weapon . | . . . . . . . Unidentified Prototypes 1 | . . . . . 1 . Parts Lost 16 | . 6 . . . 2 8 Power 4 | . 2 . . . 1 1 Propulsion 5 | . 2 . . . . 3 Utility 4 | . 1 . . . . 3 Weapon 3 | . 1 . . . 1 1 Highest Loss Streak 6 | . 6 . . . 2 5 To Critical Strikes . | . . . . . . . Average Backups 5 | 4 5 5 3 6 3 6 Power . | 1 2 1 1 . . . Propulsion . | 2 . 2 1 1 . . Utility 2 | . . . . 3 2 5 Weapon . | 1 2 2 . 1 . . Tool/Special . | . . . . . . . Unused Backups 24 | . 9 . 2 7 . 6 Power 3 | . 2 . . . . 1 Propulsion 7 | . 4 . 2 1 . . Utility 10 | . 1 . . 4 . 5 Weapon 4 | . 2 . . 2 . . Tool/Special . | . . . . . . . Average Slot Usage (%) 58 | . 83 42 56 71 43 41 Engine 7 | . 13 14 14 14 8 . Core 2 | . . . . . . 5 Leg 7 | . 23 . . . . . Flight 9 | . 1 28 28 28 9 5 Device 8 | . 4 . . . 17 13 Storage 8 | . 13 . 5 13 . 5 Ballistic Gun 10 | . 25 . 8 14 7 . Special Weapon 1 | . . . . . . 3 Slashing Weapon 1 | . . . . . . 4 Peak Build Rating 58 | 6 7 3 8 14 43 58 Average Rating 23 | 6 5 3 5 9 41 41 On Entrance 11 | 6 6 3 3 8 11 41 Avg Prop Armor Cover (%) . | . . . . . . . Naked Turns 32 | . . . . . . 32 Heaviest Build 59 | 11 11 3 24 24 6 59 Greatest Support 50 | 20 20 8 8 8 50 50 Greatest Overweight (x) 3 | . 2 . 2 2 . 3 Average Overweight (x) . | . . . . 1 . . Largest Inventory Capacity 20 | 8 8 5 15 15 5 20 Average Capacity 11 | 8 7 5 9 14 5 16 Most Carried 13 | 6 8 5 5 13 5 10 Average Carried 5 | 4 5 5 4 9 3 6 Final Capacity 15 | 8 5 5 15 5 5 5 Final Carried 5 | 2 5 5 5 5 5 2 Class Distribution -------------------- 95% | Mutant 4% | Scout Dominant Class ---------------- Mutant | -10/Materials Mutant | -10/Mines Mutant | -10/Exiles Mutant | -9/Mines Mutant | -8/Materials Mutant | -7/Factory Resources | -11 -10 -10 -10 -9 -8 -7 ----------- Run | Yrd Mat Min Exi Min Mat Fac Matter Collected 511 | 210 172 . . 40 14 75 Remotely . | . . . . . . . Salvage Created 544 | . 325 . . . 14 205 Parts 35 | . 24 . . . 1 10 Haulers Intercepted . | . . . . . . . Recyclers Shooed 1 | . 1 . . . . . Parts Field Recycled . | . . . . . . . Retrieved Matter . | . . . . . . . Parts Self-Destructed . | . . . . . . . Prevented . | . . . . . . . Parts Restored . | . . . . . . . Kills | -11 -10 -10 -10 -9 -8 -7 ------- Run | Yrd Mat Min Exi Min Mat Fac Combat Hostiles Destroyed 15 | . 11 . . . 1 3 Melee 3 | . . . . . . 3 Guns 12 | . 11 . . . 1 . Classes Destroyed 5 | . 3 . . . . 2 Recycler 1 | . . . . . . 1 Watcher 1 | . 1 . . . . . Swarmer 8 | . 6 . . . 1 1 Grunt 5 | . 5 . . . . . Programmer 2 | . . . . . . 2 Best Kill Streak 4 | . 4 . . . 1 1 Combat Bots Only 4 | . 4 . . . 1 1 Max Kills in Single Turn 2 | . 2 . . . 1 1 Gunslinging 1 | . 1 . . . . . Exploded . | . . . . . . . Melee 1 | . . . . . . 1 Uniques/NPCs Destroyed . | . . . . . . . Combat | -11 -10 -10 -10 -9 -8 -7 -------- Run | Yrd Mat Min Exi Min Mat Fac Hostile Shots Fired 406 | . 93 3 . 3 112 195 Missed 180 | . 30 . . 2 63 85 Hits 226 | . 63 3 . 1 49 110 Melee 3 | . . . . . 3 . Projectile 223 | . 63 3 . 1 46 110 AOE 3 | . . . . . 1 2 Critical Strikes 1 | . . . . . 1 . Damage Taken 2678 | . 664 35 . 9 583 1387 Core 910 | . 141 11 . . 55 703 Absorbed by Shields . | . . . . . . . Core Remaining (%) 76 | 100 . . . 39 90 . Volleys Fired 56 | . 53 . . . 2 1 Largest 2 | . 2 . . . 1 1 Hottest 40 | . 40 . . . 20 5 Shots Fired 82 | . 79 . . . 2 1 Gun 81 | . 79 . . . 2 . Cannon . | . . . . . . . Launcher . | . . . . . . . Special 1 | . . . . . . 1 Kinetic 81 | . 79 . . . 2 . Thermal . | . . . . . . . Explosive . | . . . . . . . Electromagnetic . | . . . . . . . Robot Hit Streak 8 | . 8 . . . . . Robot Miss Streak 3 | . 3 . . . . . Penetration Max . | . . . . . . . Secondary Targets 2 | . 2 . . . . . Max Gunslinging Chain 1 | . 1 . . . . . Shots Hit Robots 61 | . 51 . . . . 10 Core Hits 28 | . 24 . . . 1 3 Critical Kills . | . . . . . . . Critical Parts Destroyed . | . . . . . . . Critical Strikes 2 | . . . . . . 2 Sever 2 | . . . . . . 2 Melee Attacks 16 | . . . . . . 16 Impact . | . . . . . . . Slashing 16 | . . . . . . 16 Piercing . | . . . . . . . Sneak Attacks 1 | . . . . . . 1 Combat Hostiles . | . . . . . . . Follow-up Attacks . | . . . . . . . Damage Inflicted 762 | . 415 . . . 10 337 Guns 425 | . 415 . . . 10 . Cannons . | . . . . . . . Explosions . | . . . . . . . Melee 337 | . . . . . . 337 Ramming . | . . . . . . . Kinetic 425 | . 415 . . . 10 . Thermal . | . . . . . . . Explosive . | . . . . . . . Electromagnetic . | . . . . . . . Impact . | . . . . . . . Slashing 337 | . . . . . . 337 Piercing . | . . . . . . . Highest Corruption 1 | . . . . . . 1 Average Corruption 1 | . . . . . . 1 Corruption Purged . | . . . . . . . Corruption Blocked . | . . . . . . . Effects 1 | . . . . . . 1 Heat Flow Errors 1 | . . . . . . 1 Overload Shots . | . . . . . . . Overflow Damage 21 | . . . . . . 21 Projectiles . | . . . . . . . Explosions . | . . . . . . . Melee 21 | . . . . . . 21 Knockbacks . | . . . . . . . Impact . | . . . . . . . Kinetic . | . . . . . . . Secondary . | . . . . . . . Self-Inflicted Damage . | . . . . . . . Shots . | . . . . . . . Rammed . | . . . . . . . Targets Rammed . | . . . . . . . Kicked . | . . . . . . . Crushed . | . . . . . . . Highest Temperature 174 | . 15 . . . 2 174 Average Temperature 27 | . 7 . . . 1 104 Received Heat Transfer 417 | . 231 21 . . 54 111 Siege Activations . | . . . . . . . Martial Activations . | . . . . . . . Shielding Activations . | . . . . . . . Robots Disrupted . | . . . . . . . Combat Hostiles . | . . . . . . . Robots Corrupted . | . . . . . . . Combat Hostiles . | . . . . . . . Parts Fried . | . . . . . . . Impact Corruptions . | . . . . . . . Robots Melted . | . . . . . . . Combat Hostiles . | . . . . . . . Parts Melted . | . . . . . . . Heat Transferred . | . . . . . . . Parts Sabotaged . | . . . . . . . Parts Stolen . | . . . . . . . Parts Stripped . | . . . . . . . Power Chain Reactions . | . . . . . . . Alert | -11 -10 -10 -10 -9 -8 -7 ------- Run | Yrd Mat Min Exi Min Mat Fac Maximum Alert Level 1 | . 1 . . . . . Low Security (%) 99 | 100 97 100 . 100 100 100 Level 1 . | . 2 . . . . . Level 2 . | . . . . . . . Level 3 . | . . . . . . . Level 4 . | . . . . . . . Level 5 . | . . . . . . . High Security . | . . . . . . . Max Security . | . . . . . . . Peak Influence 212 | . 212 67 . 45 65 43 Initial 56 | . . 56 . . 13 18 Average 20 | . 45 55 . 2 21 5 Influence Increases 815 | . 421 11 . 60 116 207 Destroy 0b10 Robot/C 300 | . 220 . . . 20 60 Destroy 0b10 Robot/NC 10 | . 5 . . . . 5 Destroy Leader 82 | . 52 . . . . 30 Successful Hack 31 | . 9 11 . . 6 5 Destroy Structure 2 | . . . . . . 2 Partial Spotted 15 | . . . . 15 . . Lose Combat Pursuer 375 | . 135 . . 45 90 105 Influence Decreases 778 | . 275 120 37 25 111 210 Entered New Map 171 | . . 90 37 . 22 22 Time Decay 451 | . 215 30 . 10 69 127 Lost Part 141 | . 60 . . . 20 61 Lost Ally 15 | . . . . 15 . . Squads Dispatched 10 | . 3 . . 2 2 3 Investigation 4 | . 1 . . 1 1 1 Extermination 1 | . . . . . . 1 Reinforcement 4 | . 2 . . . 1 1 Assault 1 | . . . . 1 . . Garrison . | . . . . . . . Intercept . | . . . . . . . Searches Triggered . | . . . . . . . Construction Impeded . | . . . . . . . Haulers Reinforced . | . . . . . . . Active Scanning Responses . | . . . . . . . Cargo Convoy Interrupts . | . . . . . . . Stealth | -11 -10 -10 -10 -9 -8 -7 --------- Run | Yrd Mat Min Exi Min Mat Fac Distress Signals 4 | . 4 . . . . . Communications Jammed 17 | . . . . . 16 1 Distress Signals 16 | . . . . . 16 . Times Spotted 69 | . 23 2 . 4 21 19 Peak Tracking Total 14 | . 8 2 . 3 14 9 Tactical Retreats 12 | . 4 . . 1 4 3 Traps | -11 -10 -10 -10 -9 -8 -7 ------- Run | Yrd Mat Min Exi Min Mat Fac Traps Triggered . | . . . . . . . Indirectly . | . . . . . . . Trap Hack Attempts . | . . . . . . . Triggered . | . . . . . . . Disarmed . | . . . . . . . Reprogrammed . | . . . . . . . Reused . | . . . . . . . Traps Extracted . | . . . . . . . Installed . | . . . . . . . Triggered . | . . . . . . . Machines | -11 -10 -10 -10 -9 -8 -7 ---------- Run | Yrd Mat Min Exi Min Mat Fac Machines Disabled . | . . . . . . . Max in Single Turn . | . . . . . . . Machines Repaired . | . . . . . . . Machines Dismantled . | . . . . . . . Machines Sabotaged . | . . . . . . . Overloaded Fab Kills . | . . . . . . . Hacking | -11 -10 -10 -10 -9 -8 -7 --------- Run | Yrd Mat Min Exi Min Mat Fac Machines Accessed 9 | . 3 1 . 1 2 2 Terminals 7 | . 3 1 . . 2 1 Fabricators . | . . . . . . . Repair Stations . | . . . . . . . Recycling Units . | . . . . . . . Scanalyzers . | . . . . . . . Garrison Access 1 | . . . . . . 1 Total Hacks 19 | . 8 2 . 1 5 3 Successful 9 | . 4 2 . 1 1 1 Failed 10 | . 4 . . . 4 2 Catastrophic 1 | . . . . . . 1 Database Lockouts . | . . . . . . . Manual 18 | . 8 2 1 . 5 2 Terminals 16 | . 8 2 . . 5 1 Fabricators . | . . . . . . . Repair Stations . | . . . . . . . Recycling Units . | . . . . . . . Scanalyzers . | . . . . . . . Garrison Access 2 | . . . . . . 2 Terminal Hacks 2 | . . . . 1 . 1 Open Door 1 | . . . . 1 . . Open DSF 1 | . . . . . . 1 Fabricator Hacks . | . . . . . . . Repair Station Hacks . | . . . . . . . Recycling Unit Hacks . | . . . . . . . Scanalyzer . | . . . . . . . Garrison Access Hacks . | . . . . . . . Unauthorized Hacks 7 | . 4 2 . . 1 . Terminals 7 | . 4 2 . . 1 . Assimilate 3 | . 1 1 . . 1 . Botnet 4 | . 3 1 . . . . Fabricators . | . . . . . . . Repair Stations . | . . . . . . . Recycling Units . | . . . . . . . Scanalyzers . | . . . . . . . Garrison Access . | . . . . . . . Data Cores Recovered . | . . . . . . . Used . | . . . . . . . Hacking Detections 5 | . 2 . . . 2 1 Full Trace Events 4 | . 2 . . . 1 1 Feedback Events . | . . . . . . . Feedback Blocked . | . . . . . . . Robot Schematics Acquired . | . . . . . . . Robots Built . | . . . . . . . Authchips . | . . . . . . . Time . | . . . . . . . Total Robot Build Rating . | . . . . . . . Part Schematics Acquired . | . . . . . . . Parts Built . | . . . . . . . Authchips . | . . . . . . . Time . | . . . . . . . Total Part Build Rating . | . . . . . . . Part Studies Acquired . | . . . . . . . Parts Repaired . | . . . . . . . Time . | . . . . . . . Parts Recycled . | . . . . . . . Recycled Matter . | . . . . . . . Retrieved Matter . | . . . . . . . Retrieved Components . | . . . . . . . Parts Scanalyzed . | . . . . . . . Part Schematics Acquired . | . . . . . . . Parts Damaged . | . . . . . . . Bothacking | -11 -10 -10 -10 -9 -8 -7 ------------ Run | Yrd Mat Min Exi Min Mat Fac Used RIF Installer . | . . . . . . . Robots Hacked . | . . . . . . . Non-combat . | . . . . . . . Combat . | . . . . . . . Robot Hacks Applied . | . . . . . . . Relay Couplers Released . | . . . . . . . Fabnet Peak Effective % . | . . . . . . . Robots Rewired . | . . . . . . . Allies Hacked . | . . . . . . . Hacks Repelled . | . . . . . . . Allies | -11 -10 -10 -10 -9 -8 -7 -------- Run | Yrd Mat Min Exi Min Mat Fac Total Allies 1 | . . . . 1 . . Largest Group 1 | . . . . 1 . . Highest-Rated Group 31 | . . . . 31 . . Highest-Rated Ally 31 | . . . . 31 . . Total Orders . | . . . . . . . Ally Attacks 16 | . . . . 16 . . Total Damage 148 | . . . . 148 . . Kills . | . . . . . . . Allies Corrupted . | . . . . . . . Allies Melted . | . . . . . . . Intel | -11 -10 -10 -10 -9 -8 -7 ------- Run | Yrd Mat Min Exi Min Mat Fac Active Infowar (turns) 1129 | . 237 . . 22 236 634 Sensors 171 | . . . . . . 171 Structural 237 | . 237 . . . . . Jamming 743 | . . . . 22 236 485 Robot Analysis Total . | . . . . . . . Derelict Logs Recovered 4 | . . 1 . 3 . . Drone Launches . | . . . . . . . Drone Recoveries . | . . . . . . . Exploration | -11 -10 -10 -10 -9 -8 -7 ------------- Run | Yrd Mat Min Exi Min Mat Fac Turns Passed 2459 | 21 724 62 173 314 236 929 Spaces Moved 2101 | 15 349 124 295 191 306 821 Core 137 | . 8 . . . . 129 Treads . | . . . . . . . Legs 300 | 15 285 . . . . . Wheels . | . . . . . . . Hover 142 | . . . . . . 142 Flight 1522 | . 56 124 295 191 306 550 Fastest Speed 37 | 120 37 37 37 37 50 50 Average Speed 83 | 120 108 37 57 155 50 83 Slowest Speed 275 | 120 200 37 197 197 50 275 Overloaded Moves . | . . . . . . . Propulsion Burnouts . | . . . . . . . Robots Hopped 3 | . . 2 . . 1 . Potential Cave-ins . | . . . . . . . Cave-ins Triggered . | . . . . . . . Exploration Rate (%) 35 | 2 57 22 63 55 32 17 Regions Visited 6 Branch Regions 3 Pre-discovered Areas 1 | . . . . 1 . . Known Exits Taken 1 | . . . . . 1 . Unknown Exits Taken 5 | 1 1 1 1 1 . . Scrap Searched 3 | . . . . 3 . . Spaces Dug 2 | . . . . . . 2 Terrain Destroyed 2 | . . . . . . 2 Melee 2 | . . . . . . 2 Projectile . | . . . . . . . AOE . | . . . . . . . Terrain Rammed . | . . . . . . . Walls Destroyed . | . . . . . . . Machines Disabled . | . . . . . . . Actions | -11 -10 -10 -10 -9 -8 -7 --------- Run | Yrd Mat Min Exi Min Mat Fac Total 2724 | 19 631 137 301 210 386 1040 Wait 459 | . 197 16 1 . 71 174 Move 2089 | 14 348 119 294 190 303 821 Hop 3 | . . 2 . . 1 . Pick Up 36 | . 11 . 1 9 5 10 Fast Attach 6 | . 4 . 1 . . 1 Attach 16 | . 3 . 1 1 2 9 Detach 3 | . 2 . . . . 1 Swap 6 | 1 4 . . 1 . . Drop 34 | 4 9 . 3 9 2 7 Fire 56 | . 53 . . . 2 1 Melee 16 | . . . . . . 16 Ram . | . . . . . . . Kick . | . . . . . . . Crush . | . . . . . . . Escape Stasis . | . . . . . . . Rewire . | . . . . . . . Trap . | . . . . . . . Miscellaneous . | . . . . . . . Route ------- -11/Scrapyard -10/Materials (discovered 3 exits: [*Mat] / *Min x2) -10/Mines -10/Exiles (discovered 2 exits: *Min x2) -9/Mines -8/Materials (discovered 3 exits: *Fac x2 / Sto) -7/Factory History --------- Turn | Location | Event 1 | -11/Scrapyard | Discovered new exit (range 3) 22 | -11/Scrapyard | Entered Materials 164 | -10/Materials | Discovered new exit (range 5) 301 | -10/Materials | Build established: Mutant 316 | -10/Materials | Discovered new exit (range 15) 443 | -10/Materials | Discovered new exit (range 8) 657 | -10/Materials | Core integrity fell below 50% 683 | -10/Materials | Lost 6 parts (2p2n1u1w) 746 | -10/Materials | Entered Mines 757 | -10/Mines | Learned 2 Materials zone layouts 804 | -10/Mines | Deemed a non-threat by the Exiles lab entrance 805 | -10/Mines | Discovered new exit (range 5) 808 | -10/Mines | Entered Exiles 813 | -10/Exiles | Discovered new exit (range 15) 818 | -10/Exiles | Met 8R-AWN 827 | -10/Exiles | Met EX-HEX 849 | -10/Exiles | Met EX-BIN 857 | -10/Exiles | Aligned with FarCom system 858 | -10/Exiles | Given EX-Vault access code 869 | -10/Exiles | Opened EX-Vault 872 | -10/Exiles | Found Prototype Flight Unit 880 | -10/Exiles | Warned to stay clear of 0b10 Research branches 891 | -10/Exiles | Met EX-DEC 953 | -10/Exiles | Discovered new exit (range 14) 981 | -10/Exiles | Left Exiles lab with Flying Fortress v7 981 | -10/Exiles | Entered Mines 998 | -9/Mines | Received a Rocket Launcher from a helpful Derelict 1026 | -9/Mines | Learned location of 2 exits from Materials 1074 | -9/Mines | Met a Derelict shopkeep closing up shop 1177 | -9/Mines | Met a Derelict testing a Signal Generator 1186 | -9/Mines | Learned 2 Materials zone layouts 1291 | -9/Mines | Discovered new exit (range 11) 1295 | -9/Mines | Entered Materials 1295 | -8/Materials | Evolved 4 slots: Power x1, Propulsion x2, Utility x1 1296 | -8/Materials | Identified exit to Factory 1297 | -8/Materials | Identified exit to Storage 1297 | -8/Materials | Identified Flying Fortress v7 1531 | -8/Materials | Entered Factory 1531 | -7/Factory | Evolved 2 slots: Utility x2 2310 | -7/Factory | Lost 5 parts (2n2u1w) 2413 | -7/Factory | Core integrity fell below 50% 2452 | -7/Factory | Core integrity fell below 20% 2460 | -7/Factory | Destroyed by Y-54 Guardian with Flak Gun Last Messages --------------- G-50 Soldier unfolds itself. G-47 Trooper unfolds itself. K-01 Serf cleans the Terminal. O-24 Administrator: "IFF HANDSHAKE FAILED. SECURING TERMINAL." O-24 Administrator uses terminal to summon reinforcements. ALERT: Hostiles spotted, dispatching reinforcements to Terminal F018. O-24 Administrator locks terminal. Terminal unresponsive. Imp. Hover Unit destroyed. Imp. Sensor Array destroyed. S-27 Virus destroyed. Neutrino Reactor explodes. System corrupted: Heat flow error (+208). Neutrino Reactor explodes. Door malfunctions. Y-54 Guardian IFF system glitched. S-27 Virus destroyed. Map ----- +----------------------------------------------------+ | ??????????????????????????????????????????????? | | ??????????????????????????????????????????????? | | ??????????????????????????????????????????????? | | ??????????????????????????????????????????????? | | ??????????????????????????????????????????????? | | ??????????????????????????????????????????????? | | ??????????????????????????????????????????????? | | ?????????????###??????????????????????????????? | | ???????####### ############???????????????????? | | ???????#! !! #???????????????????? | | ???????# !! "" #???????????????????? | | ???##### !! [ """ #???????????????????? | | ???# / Y S" #???????????????????? | | ???# ### "" """ #???????????????????? | | ???# #?# "" """ #???????????????????? | | ???# #?# "" #???????????????????? | | ???# #?# =% #???????????????????? | | ???# ############/#########???????????????????? | | ???# [=#??????????????????????????? | | ???# ########### #??????????????????????????? | | ???# #?????????# #??????????????????????????? | | ???# #?????????# #??????????????????????????? | | ???#+#?#####?### ###????????????????????????? | | ???# """""?# #???????????????????????## | | ???# ""T"" # Y ##+#######??????????????? | | ???# # @ ???????? | | ???# [ + / ???????? | | ???# # ????????? | | ???# """ """ # ############+###?????????? | | ???? """ """?# Y #????????????????????????? | | ?????""" """?## ##????????????????????????? | | ??????#####???# #???????????????????####### | | ??????????????# #???????????????????# | | ??????????????#= #???????????????????# | | #############?#% #???????????????????# | | # #?# #???????????????????# " | | # """"""""" ### ###????##############] " | | # # #????# # | | # """"""""" # #????# # ! | | # # #????# """"""""" # | | # """"""""" # T" ###### # | | # + " w / """"""""" # "" | | # """"""""" # ###### / """ | | # # #????# """"""""" # "" | | # """"""""" # #????# # ""F" | | # # #????# """"""""" # """" | | # """"""""" ###########????# # """ | | # #??????????????# """"""""" # | | #############??????????????# # | | ????????????????????????#??#####+######## | +----------------------------------------------------+ Best States ------------- Heat Dissipation 34 Energy Generation 25 Energy Capacity 250 Matter Stores 300 Matter Capacity 300 Sight Range 16 Robot Scan Range 15 Terrain Scan Density 110 Jamming Range 12 Evasion (%) 62 Item Schematics ----------------- None Robot Schematics ------------------ None Fabricated ------------ Nothing Repaired ---------- Nothing Studied --------- None Alien Tech Used ----------------- None Achievements -------------- None Challenges ------------ None Game ------ Seed ThrowingPitchforkClaws Manual? 0 Play Time 00:31:27 Cumulative 25.5 hours Start 2025.11.02 @ 19:14:47 End 2025.11.02 @ 19:43:38 Sessions 1 Manual Loads 0 Difficulty Rogue Special Mode None Game No. 84 Rogue 84 Adventurer 0 Explorer 0 Win Type - Total 0 Types 0/0/0/0/0/0/0/0/0/0 Lore% 10 Gallery% 22 Achievement% 18 Wizard Run 0 Options --------- Layout 1 ASCII 0 Keyboard 0 Movement Mouse Keybinds 0 Fullscreen 1 Font 32/SmallcapsGlow Map View 50x35 Zoom Use 0% Tactical HUD 0 Map Filters NONE Filters NONE Steam 1 RUN: c67c7f78-930a-4e79-a65d-245bfc97dd23